bitfinex/quotes_BTCUSD_20250422
["timestamp","ask_amount","ask_price","bid_price","bid_amount"]
[1745336102893,0.000849,90689.0,90688.0,0.67429228]
[1745336103105,0.000849,90689.0,90684.0,0.1]
[1745336103305,0.000849,90689.0,90688.0,0.001]
[1745336103508,0.000849,90689.0,90687.0,0.22053659]
[1745336103752,0.000849,90689.0,90688.0,0.33649745]
[1745336104053,0.000849,90689.0,90688.0,0.33829228]
[1745336104187,0.000849,90689.0,90688.0,0.33729228]
[1745336104429,0.000849,90689.0,90684.0,0.1]
[1745336104430,0.11460494,90689.0,90684.0,0.1]
[1745336104607,0.000849,90689.0,90684.0,0.1]
[1745336104830,0.04287795,90693.0,90687.0,0.002]
[1745336105033,0.08895659,90698.0,90687.0,0.002]
[1745336105262,0.00155,90700.0,90694.0,0.01102608]
[1745336105470,0.00155,90700.0,90692.0,0.01102633]
[1745336105704,0.00155,90700.0,90697.0,0.01102572]
[1745336105906,0.00155,90700.0,90698.0,0.00220481]
[1745336106308,0.00155,90700.0,90699.0,0.22050959]
[1745336106538,0.00155,90700.0,90698.0,0.00220481]
[1745336106940,0.00155,90700.0,90699.0,0.33426553]
[1745336107135,0.00455,90700.0,90699.0,0.33426553]
[1745336107360,0.00155,90700.0,90699.0,0.33426553]
[1745336107572,0.00155,90700.0,90699.0,0.67426553]
[1745336107762,0.00455,90700.0,90699.0,0.67426553]
[1745336107979,0.00155,90700.0,90699.0,0.67426553]
[1745336108131,0.00155,90700.0,90699.0,0.67526553]
[1745336108333,0.00155,90700.0,90699.0,0.67626553]
[1745336108535,0.00155,90700.0,90699.0,0.67526553]
[1745336108742,0.00155,90700.0,90699.0,0.6875764]
[1745336108942,0.00155,90700.0,90699.0,0.6885764]
[1745336109971,0.0004,90709.0,90699.0,0.6885764]
[1745336109972,0.0004,90709.0,90705.0,0.34]
[1745336110176,0.08575179,90729.0,90720.0,0.01102292]
[1745336110349,0.08575179,90729.0,90721.0,0.0110228]
[1745336110548,0.00013836,90721.0,90719.0,0.22046098]
[1745336110765,0.00013836,90721.0,90718.0,0.23148472]
[1745336110958,0.00013836,90721.0,90719.0,0.22045926]
[1745336111373,0.00013836,90721.0,90719.0,0.22045895]
[1745336111574,0.00013836,90721.0,90718.0,0.34524066]
[1745336111850,0.00013836,90721.0,90719.0,0.22045953]
[1745336111983,0.00213836,90721.0,90718.0,0.11375594]
[1745336113424,0.22046341,90718.0,90699.0,0.01231087]
[1745336113635,0.00220661,90718.0,90702.0,0.01102511]
[1745336113883,0.31162508,90719.0,90701.0,0.34]
[1745336114144,0.30941847,90719.0,90702.0,0.01102511]
[1745336114336,0.08895659,90719.0,90701.0,0.01102523]
[1745336114645,0.31162519,90719.0,90701.0,0.01102523]
[1745336114851,0.2204675,90717.0,90700.0,0.01102535]
[1745336115072,0.22046738,90717.0,90702.0,0.003]
[1745336115302,0.22046925,90716.0,90702.0,0.003]
[1745336115550,0.08895659,90719.0,90702.0,0.003]
[1745336115749,0.22047028,90716.0,90702.0,0.003]
[1745336116189,0.22049939,90704.0,90702.0,0.003]
[1745336116405,0.00220661,90703.0,90702.0,0.003]
[1745336116606,0.00220661,90703.0,90699.0,0.01212807]
[1745336116812,0.00220661,90706.0,90699.0,0.01212807]
[1745336117023,0.22049866,90704.0,90690.0,0.59075142]
[1745336117227,0.22049456,90706.0,90699.0,0.01250093]
[1745336117444,0.22049529,90705.0,90701.0,0.003]
[1745336117658,0.22049473,90706.0,90700.0,0.004]
[1745336117868,0.22048646,90709.0,90700.0,0.004]
[1745336118096,0.00819643,90716.0,90699.0,0.001]
[1745336118308,0.00819643,90716.0,90685.0,0.34]
[1745336118309,0.11596255,90715.0,90685.0,0.34]
[1745336118518,0.22050287,90702.0,90699.0,0.001]
[1745336118735,0.22049228,90707.0,90699.0,0.001]
[1745336118950,0.22049014,90707.0,90689.0,0.01102669]
[1745336119162,0.22049279,90706.0,90689.0,0.01102669]
[1745336119375,0.2226994,90706.0,90686.0,0.23156675]
[1745336119601,0.22148754,90709.0,90692.0,0.01102633]
[1745336119823,0.001,90709.0,90699.0,0.60177689]
[1745336120028,0.001,90709.0,90701.0,0.22150421]
[1745336120230,0.001,90709.0,90701.0,0.01102523]
[1745336120351,0.001,90709.0,90699.0,0.59075142]
[1745336120564,0.001,90709.0,90702.0,0.01102511]
[1745336120780,0.001,90709.0,90700.0,0.01102535]
[1745336121016,0.22046857,90716.0,90699.0,0.59075142]
[1745336121395,0.001,90707.0,90696.0,0.23154126]
[1745336121680,0.08895659,90714.0,90689.0,0.012184]
[1745336121809,0.00220661,90713.0,90688.0,0.01102681]
[1745336122020,0.22049628,90705.0,90689.0,0.11375594]
[1745336122226,0.22049584,90705.0,90690.0,0.59075142]
[1745336122426,0.22049169,90707.0,90691.0,0.11375594]
[1745336122639,0.22048771,90708.0,90691.0,0.11375594]
[1745336123058,0.22049289,90706.0,90689.0,0.01223371]
[1745336123269,0.22048388,90710.0,90685.0,0.34]
[1745336123270,0.00220661,90708.0,90685.0,0.34]
[1745336123499,0.22049745,90704.0,90691.0,0.002]
[1745336123701,0.22049552,90705.0,90691.0,0.002]
[1745336124737,0.00220661,90713.0,90695.0,0.01102596]
[1745336124949,0.22048177,90711.0,90696.0,0.00220488]
[1745336125176,0.00833337,90725.0,90697.0,0.01102572]
[1745336125456,0.22047927,90712.0,90697.0,0.11375594]
[1745336125608,0.21347927,90712.0,90697.0,0.11375594]
[1745336126021,0.001,90713.0,90701.0,0.01102523]
[1745336126225,0.001,90713.0,90702.0,0.00220469]
[1745336127062,0.001,90713.0,90706.0,0.01102462]
[1745336127262,0.00013836,90721.0,90707.0,0.00220455]
[1745336127584,0.002,90712.0,90707.0,0.00220455]
[1745336127967,0.00013836,90721.0,90707.0,0.00220455]
[1745336128169,0.00013836,90721.0,90703.0,0.12478093]
[1745336128170,0.001,90713.0,90704.0,0.34]
[1745336128373,0.004,90713.0,90704.0,0.45375594]
[1745336128922,0.001,90713.0,90704.0,0.45375594]
[1745336129542,0.22159449,90721.0,90704.0,0.45375594]
[1745336129790,0.00113836,90721.0,90707.0,0.001]
[1745336129999,0.02057861,90720.0,90707.0,0.001]
[1745336130205,0.24103959,90720.0,90704.0,0.45375594]
[1745336130412,0.00013836,90721.0,90705.0,0.02880622]
[1745336130594,0.22059605,90721.0,90706.0,0.00220461]
[1745336130764,0.22046251,90719.0,90701.0,0.35102523]
[1745336130986,0.22046251,90719.0,90702.0,0.03983141]
[1745336131198,0.22046251,90719.0,90703.0,0.03983129]
[1745336131396,0.001,90720.0,90704.0,0.03101091]
[1745336131607,0.001,90720.0,90710.0,0.01102414]
[1745336131808,0.00013836,90721.0,90711.0,0.03101088]
[1745336132009,0.00013836,90721.0,90712.0,0.00617098]
[1745336132207,0.001,90719.0,90712.0,0.00617098]
[1745336132765,0.001,90719.0,90713.0,0.01102377]
[1745336132944,0.001,90719.0,90713.0,0.03104764]
[1745336133168,0.001,90719.0,90714.0,0.01102365]
[1745336133317,0.08575179,90729.0,90714.0,0.01102365]
[1745336133318,0.08089015,90729.0,90714.0,0.03501074]
[1745336133579,0.08089015,90729.0,90715.0,0.02884306]
[1745336133749,0.0463,90734.0,90715.0,0.02884306]
[1745336133750,0.0496,90738.0,90725.0,0.01102232]
[1745336133953,0.00305441,90737.0,90726.0,0.23146453]
[1745336134154,0.00305441,90737.0,90727.0,0.01102207]
[1745336134310,0.00305441,90737.0,90726.0,0.00615799]
[1745336134514,0.0008478,90737.0,90726.0,0.01836613]
[1745336134753,0.0008478,90737.0,90726.0,0.01220814]
[1745336134956,0.00805441,90737.0,90727.0,0.00615799]
[1745336135358,0.00805441,90737.0,90723.0,0.01102256]
[1745336135623,0.0058478,90737.0,90726.0,0.01102219]
[1745336135838,0.08895659,90730.0,90724.0,0.04101498]
[1745336136055,0.00805441,90737.0,90724.0,0.01213485]
[1745336136221,0.01205441,90737.0,90725.0,0.02887831]
[1745336136459,0.00305441,90737.0,90725.0,0.02887831]
[1745336136660,0.02057291,90736.0,90725.0,0.02887831]
[1745336136832,0.02057291,90735.0,90725.0,0.02887831]
[1745336137042,0.00220661,90734.0,90725.0,0.02887831]
[1745336137442,0.02057291,90733.0,90725.0,0.02887831]
[1745336137614,0.02277952,90732.0,90725.0,0.02887831]
[1745336137795,0.02057291,90732.0,90725.0,0.04149543]
[1745336138007,0.02057291,90731.0,90726.0,0.02887831]
[1745336138616,0.002,90734.0,90726.0,0.02887831]
[1745336138791,0.00420661,90734.0,90724.0,0.40545122]
[1745336138993,0.002,90734.0,90725.0,0.02888382]
[1745336139406,0.00220661,90733.0,90726.0,0.00745921]
[1745336139581,0.00220661,90733.0,90727.0,0.02888382]
[1745336139796,0.22044043,90728.0,90726.0,0.00745921]
[1745336140011,0.01454085,90725.0,90724.0,0.00610527]
[1745336140209,0.22046098,90719.0,90718.0,0.39331637]
[1745336140442,0.22046098,90719.0,90694.0,0.01102608]
[1745336140443,0.22046766,90717.0,90709.0,0.39331637]
[1745336140738,0.0205693,90719.0,90709.0,0.78663274]
[1745336140958,0.00220661,90722.0,90709.0,0.7984896]
[1745336141183,0.00220661,90722.0,90710.0,0.34]
[1745336141184,0.22045589,90722.0,90710.0,0.34]
[1745336141417,0.22046098,90719.0,90711.0,0.02887085]
[1745336141640,0.22046805,90717.0,90710.0,0.02887085]
[1745336141850,0.22045354,90723.0,90711.0,0.02887085]
[1745336142061,0.00220661,90722.0,90710.0,0.02887085]
[1745336142212,0.22045722,90721.0,90712.0,0.02887085]
[1745336142421,0.22145531,90722.0,90713.0,0.02887085]
[1745336142646,0.001,90722.0,90714.0,0.02887085]
[1745336142846,0.001,90722.0,90715.0,0.00747007]
[1745336143048,0.001,90722.0,90719.0,0.1]
[1745336143455,0.001,90722.0,90720.0,0.02887026]
[1745336143653,0.001,90722.0,90719.0,0.1]
[1745336143654,0.2204567,90721.0,90719.0,0.1]
[1745336143854,0.2204464,90727.0,90719.0,0.1]
[1745336144030,0.2204551,90722.0,90720.0,0.00746765]
[1745336144231,0.22045317,90723.0,90720.0,0.00746765]
[1745336144557,0.0493478,90737.0,90720.0,0.00746765]
[1745336144931,0.22044594,90726.0,90721.0,0.02887779]
[1745336145343,0.22044553,90726.0,90720.0,0.00746765]
[1745336145547,0.22044961,90724.0,90721.0,0.02888083]
[1745336145753,0.22045278,90723.0,90721.0,0.02888083]
[1745336146088,0.22045278,90723.0,90720.0,0.00746765]
[1745336146089,0.22045612,90721.0,90720.0,0.00746765]
[1745336146344,0.22044974,90724.0,90720.0,0.00746765]
[1745336146546,0.22045163,90723.0,90720.0,0.01095792]
[1745336146738,0.22045744,90721.0,90719.0,0.1]
[1745336146937,0.22043295,90731.0,90720.0,0.02886185]
[1745336147160,0.003,90726.0,90720.0,0.42217822]
[1745336147364,0.002,90721.0,90720.0,0.39331637]
[1745336147563,0.003,90726.0,90720.0,0.42217801]
[1745336147767,0.21703027,90730.0,90721.0,0.02886164]
[1745336147962,0.004,90721.0,90720.0,0.02886164]
[1745336148218,0.004,90721.0,90720.0,0.02886486]
[1745336148831,0.21743698,90729.0,90720.0,0.02886486]
[1745336149026,0.002,90721.0,90720.0,0.02886486]
[1745336149449,0.22044454,90726.0,90720.0,0.02886486]
[1745336149664,0.003,90721.0,90720.0,0.02886486]
[1745336150201,0.003,90721.0,90720.0,0.03633493]
[1745336151650,0.006,90721.0,90720.0,0.03633493]
[1745336152470,0.34021206,90721.0,90720.0,0.00747007]
[1745336152703,0.45195291,90721.0,90720.0,0.00747007]
[1745336152914,0.01454085,90720.0,90719.0,0.1]
[1745336153121,0.12829679,90720.0,90719.0,0.1]
[1745336153646,0.22047334,90714.0,90710.0,0.26362248]
[1745336153860,0.22047334,90714.0,90694.0,0.01116444]
[1745336153861,0.22047334,90714.0,90711.0,0.00744885]
[1745336154068,0.23501916,90712.0,90711.0,0.00744885]
[1745336154272,0.2204988,90704.0,90694.0,0.00013836]
[1745336154474,0.2204988,90704.0,90694.0,0.01207364]
[1745336154673,0.22050281,90702.0,90695.0,0.00742403]
[1745336154879,0.11375594,90701.0,90695.0,0.00742403]
[1745336155105,0.22050718,90700.0,90694.0,0.00013836]
[1745336155319,0.33426312,90700.0,90694.0,0.00013836]
[1745336155523,0.22051932,90695.0,90694.0,0.00013836]
[1745336155733,0.39651611,90695.0,90694.0,0.00013836]
[1745336155956,0.39451611,90695.0,90694.0,0.00013836]
[1745336156201,0.39251611,90695.0,90694.0,0.00013836]
[1745336156481,0.38551611,90695.0,90694.0,0.00013836]
[1745336156709,0.38551611,90695.0,90694.0,0.00213836]
[1745336157171,0.38551611,90695.0,90694.0,0.00013836]
[1745336157403,0.38851611,90695.0,90694.0,0.00013836]
[1745336158514,0.39551611,90695.0,90694.0,0.00113836]
[1745336158748,0.39251611,90695.0,90694.0,0.00113836]
[1745336158977,0.39851611,90695.0,90694.0,0.00213836]
[1745336159475,0.78156363,90695.0,90694.0,0.00213836]
[1745336159944,1.12156363,90695.0,90694.0,0.00213836]
[1745336160165,1.12156363,90695.0,90683.0,0.0004237]
[1745336160166,0.28461854,90671.0,90670.0,0.0004237]
[1745336160413,0.860442,90671.0,90670.0,0.00056206]
[1745336160680,0.860442,90671.0,90651.0,0.0004]
[1745336160681,0.23513557,90664.0,90651.0,0.0004]
[1745336160905,0.28466477,90652.0,90651.0,0.0004]
[1745336161149,0.63096823,90652.0,90651.0,0.0004]
[1745336161370,0.64298174,90652.0,90651.0,0.0004]
[1745336161997,0.63926743,90652.0,90651.0,0.0004]
[1745336162412,0.63826743,90652.0,90651.0,0.0004]
[1745336162619,0.68366743,90652.0,90651.0,0.0004]
[1745336163465,0.69766743,90652.0,90651.0,0.0024]
[1745336163868,0.69066743,90652.0,90651.0,0.0014]
[1745336163999,0.68366743,90652.0,90651.0,0.0004]
[1745336164212,0.68366743,90652.0,90651.0,0.0014]
[1745336164813,0.67666743,90652.0,90651.0,0.0004]
[1745336165476,0.68366743,90652.0,90651.0,0.0014]
[1745336165676,0.69066743,90652.0,90651.0,0.0024]
[1745336166814,0.68366743,90652.0,90651.0,0.0014]
[1745336166988,0.77262402,90652.0,90651.0,0.0014]
[1745336167229,1.11962402,90652.0,90651.0,0.0024]
[1745336167876,1.03066743,90652.0,90651.0,0.0024]
[1745336169640,1.0510443,90652.0,90651.0,0.0024]
[1745336171063,1.0510443,90652.0,90633.0,0.0004237]
[1745336171064,0.23520859,90634.0,90633.0,0.0004237]
[1745336171288,0.34896453,90634.0,90633.0,0.00088451]
[1745336171590,0.58251205,90634.0,90633.0,0.00088451]
[1745336171973,0.57551205,90634.0,90633.0,0.00088451]
[1745336173157,0.57651205,90634.0,90633.0,0.00188451]
[1745336173318,0.57551205,90634.0,90633.0,0.00088451]
[1745336173519,0.59587379,90634.0,90633.0,0.00088451]
[1745336173735,0.59987379,90634.0,90633.0,0.00188451]
[1745336174142,0.59887379,90634.0,90633.0,0.00088451]
[1745336174342,0.60287379,90634.0,90633.0,0.00088451]
[1745336174549,0.94287379,90634.0,90633.0,0.00088451]
[1745336174864,0.94287379,90634.0,90625.0,1.80416737]
[1745336174865,0.23522807,90626.0,90625.0,1.80416737]
[1745336175079,0.67473153,90626.0,90625.0,1.81079887]
[1745336175274,0.69509327,90626.0,90625.0,1.81079887]
[1745336176129,1.12686529,90626.0,90625.0,0.12102235]
[1745336176377,0.33523781,90622.0,90621.0,0.0004]
[1745336176587,0.57896762,90622.0,90621.0,0.0004]
[1745336176790,0.7130853,90622.0,90621.0,0.0004]
[1745336177217,1.06128589,90622.0,90621.0,0.0004]
[1745336177420,0.220714,90615.0,90614.0,0.000424]
[1745336177568,0.34901079,90615.0,90614.0,0.000424]
[1745336177967,0.55265253,90615.0,90614.0,0.000424]
[1745336178377,0.56283482,90615.0,90614.0,0.000424]
[1745336178705,0.37955482,90615.0,90614.0,0.000424]
[1745336178911,0.56283482,90615.0,90614.0,0.000424]
[1745336179117,0.37955482,90615.0,90614.0,0.000424]
[1745336179347,0.03454403,90615.0,90614.0,0.000424]
[1745336179577,0.25125803,90615.0,90614.0,0.000424]
[1745336179778,0.2207202,90613.0,90600.0,0.58401537]
[1745336180023,0.02954403,90615.0,90600.0,0.58401537]
[1745336180237,0.01018229,90615.0,90601.0,0.00669695]
[1745336180440,0.05,90606.0,90601.0,0.00669695]
[1745336180887,0.05,90606.0,90601.0,0.01773435]
[1745336181096,0.05,90606.0,90603.0,0.01103716]
[1745336181303,0.05,90606.0,90601.0,0.5794809]
[1745336181493,0.05,90606.0,90601.0,0.34769695]
[1745336181930,0.05046033,90606.0,90601.0,0.34769695]
[1745336182133,0.05046033,90606.0,90601.0,0.00769695]
[1745336182333,0.05146033,90606.0,90603.0,0.001]
[1745336182641,0.05046033,90606.0,90602.0,0.01103728]
[1745336182846,0.00046033,90606.0,90603.0,0.01103716]
[1745336183087,0.00246033,90606.0,90603.0,0.01103716]
[1745336183333,0.00146033,90606.0,90602.0,0.34]
[1745336183776,0.00246033,90606.0,90603.0,0.00805658]
[1745336183983,0.01022693,90605.0,90603.0,0.00805658]
[1745336184188,0.01022693,90605.0,90603.0,0.00605658]
[1745336184604,0.01022693,90604.0,90603.0,0.00605658]
[1745336184826,0.01022693,90604.0,90602.0,0.002]
[1745336185024,0.01022693,90604.0,90603.0,0.00058985]
[1745336185852,0.01122693,90604.0,90603.0,0.00258985]
[1745336187050,0.12498287,90604.0,90603.0,0.002]
[1745336187246,0.12598287,90604.0,90603.0,0.002]
[1745336187545,0.11898287,90604.0,90603.0,0.002]
[1745336187922,0.11798287,90604.0,90603.0,0.002]
[1745336188112,0.22074324,90603.0,90601.0,0.001]
[1745336188307,0.11275594,90602.0,90601.0,0.001]
[1745336188940,0.11175594,90602.0,90601.0,0.001]
[1745336189108,0.12629679,90602.0,90601.0,0.001]
[1745336189318,0.12529679,90602.0,90601.0,0.001]
[1745336189729,0.12629679,90602.0,90601.0,0.002]
[1745336189930,0.12629679,90602.0,90601.0,0.001]
[1745336190134,0.13545097,90602.0,90601.0,0.002]
[1745336190551,0.13445097,90602.0,90601.0,0.001]
[1745336190812,0.22076193,90596.0,90592.0,0.02]
[1745336191016,0.2207676,90593.0,90592.0,0.02]
[1745336191225,0.33452354,90593.0,90592.0,0.02664169]
[1745336191695,0.22076534,90594.0,90592.0,0.02664169]
[1745336191696,0.22075629,90598.0,90592.0,0.02]
[1745336191865,0.01115418,90602.0,90592.0,0.02]
[1745336192081,0.22276086,90596.0,90593.0,0.00086196]
[1745336192272,0.22076478,90595.0,90593.0,0.00086196]
[1745336192476,0.22076404,90595.0,90592.0,0.02]
[1745336192676,0.2197676,90593.0,90592.0,0.02]
[1745336192853,0.0205582,90594.0,90592.0,0.02]
[1745336193256,0.02038408,90593.0,90592.0,0.021]
[1745336193502,0.02238408,90593.0,90592.0,0.021]
[1745336193715,0.2237676,90593.0,90592.0,0.021]
[1745336193919,0.39505632,90593.0,90592.0,0.021]
[1745336194125,0.37720356,90593.0,90592.0,0.021]
[1745336194329,0.37720356,90593.0,90592.0,0.024]
[1745336194670,0.37420356,90593.0,90592.0,0.024]
[1745336195461,0.36720356,90593.0,90592.0,0.024]
[1745336195705,0.36084431,90593.0,90592.0,0.021]
[1745336195895,0.36284431,90593.0,90592.0,0.021]
[1745336196117,0.11575594,90593.0,90592.0,0.021]
[1745336196441,0.12075594,90593.0,90592.0,0.021]
[1745336197037,0.12675594,90593.0,90592.0,0.021]
[1745336197251,0.12075594,90593.0,90592.0,0.021]
[1745336197844,0.11375594,90593.0,90592.0,0.021]
[1745336198065,0.11975594,90593.0,90592.0,0.021]
[1745336198307,0.006,90593.0,90592.0,0.021]
[1745336198531,0.22076648,90594.0,90592.0,0.021]
[1745336198738,0.007,90593.0,90592.0,0.021]
[1745336198888,0.012,90593.0,90592.0,0.021]
[1745336199095,0.005,90593.0,90592.0,0.021]
[1745336199292,0.27076648,90594.0,90592.0,0.021]
[1745336199492,0.003,90593.0,90592.0,0.021]
[1745336199845,0.27076648,90594.0,90592.0,0.021]
[1745336200046,0.003,90593.0,90592.0,0.021]
[1745336200233,0.11675594,90593.0,90592.0,0.021]
[1745336200434,0.12403511,90593.0,90592.0,0.021]
[1745336200966,0.12703511,90593.0,90592.0,0.021]
[1745336201373,0.12703511,90593.0,90592.0,0.022]
[1745336201374,0.13003511,90593.0,90592.0,0.022]
[1745336201837,0.12703511,90593.0,90592.0,0.021]
[1745336202010,0.12703511,90593.0,90592.0,0.022]
[1745336202215,0.12903511,90593.0,90592.0,0.021]
[1745336202634,0.13303511,90593.0,90592.0,0.021]
[1745336202848,0.12603511,90593.0,90592.0,0.021]
[1745336203039,0.11703511,90593.0,90592.0,0.02]
[1745336203237,0.12203511,90593.0,90592.0,0.021]
[1745336203424,0.12603511,90593.0,90592.0,0.021]
[1745336203855,0.12203511,90593.0,90592.0,0.021]
[1745336204087,0.12603511,90593.0,90592.0,0.021]
[1745336204521,0.12103511,90593.0,90592.0,0.02]
[1745336205444,0.12603511,90593.0,90592.0,0.021]
[1745336205647,0.14661051,90593.0,90592.0,0.021]
[1745336206057,0.14161051,90593.0,90592.0,0.02]
[1745336206418,0.14661051,90593.0,90592.0,0.021]
[1745336207081,0.14661051,90593.0,90592.0,0.016]
[1745336208892,0.12603511,90593.0,90592.0,0.016]
[1745336209230,0.11575594,90593.0,90592.0,0.016]
[1745336210047,0.11175594,90593.0,90592.0,0.016]
[1745336210447,0.11675594,90593.0,90592.0,0.016]
[1745336210852,0.1165508,90593.0,90592.0,0.016]
[1745336211068,0.1115508,90593.0,90592.0,0.015]
[1745336211308,0.1165508,90593.0,90592.0,0.015]
[1745336211711,0.1065508,90593.0,90592.0,0.015]
[1745336211911,0.1055508,90593.0,90592.0,0.015]
[1745336212289,0.1105508,90593.0,90592.0,0.015]
[1745336212494,0.22077583,90590.0,90583.0,0.18432286]
[1745336212694,0.011,90593.0,90584.0,0.0044624]
[1745336213067,0.006,90593.0,90585.0,0.00220764]
[1745336213437,0.012,90593.0,90585.0,0.00220764]
[1745336214231,0.006,90593.0,90585.0,0.00220764]
[1745336214429,0.002,90590.0,90588.0,0.22077979]
[1745336214632,0.002,90590.0,90589.0,0.11596358]
[1745336214858,0.00046033,90606.0,90599.0,0.22075216]
[1745336215057,0.00046033,90606.0,90603.0,0.01103716]
[1745336215279,0.00046033,90606.0,90604.0,0.00220714]
[1745336215482,0.00046033,90606.0,90604.0,0.22294675]
[1745336215692,0.00046033,90606.0,90605.0,0.16155594]
[1745336215874,0.00046033,90606.0,90605.0,0.55286294]
[1745336216036,0.00046033,90606.0,90605.0,0.56267396]
[1745336216468,0.00046033,90606.0,90605.0,0.56679463]
[1745336216623,0.00146033,90606.0,90605.0,0.56679463]
[1745336216824,0.0008486,90639.0,90629.0,0.01103399]
[1745336217094,0.0008486,90639.0,90629.0,0.78808758]
[1745336217311,0.0008486,90639.0,90636.0,0.01103314]
[1745336217512,0.0008486,90639.0,90634.0,0.00220644]
[1745336217886,0.00072952,90639.0,90634.0,0.00220644]
[1745336218312,0.00272952,90639.0,90634.0,0.00220644]
[1745336218466,0.00072952,90639.0,90636.0,0.01103314]
[1745336218666,0.00072952,90639.0,90634.0,0.1138944]
[1745336218896,0.00072952,90639.0,90634.0,0.12492778]
[1745336219076,0.00172952,90639.0,90634.0,0.1158944]
[1745336219269,0.00172952,90639.0,90636.0,0.01103314]
[1745336219479,0.08895659,90656.0,90639.0,0.01103277]
[1745336219480,0.08308611,90656.0,90639.0,0.01103277]
[1745336219677,0.08308611,90656.0,90640.0,0.39404379]
[1745336220911,0.08895659,90667.0,90647.0,0.0110318]
[1745336221124,0.08895659,90667.0,90653.0,0.39404379]
[1745336221569,0.002,90656.0,90640.0,0.39404379]
[1745336221762,0.002,90656.0,90642.0,0.01103241]
[1745336221763,0.004,90656.0,90642.0,0.01103241]
[1745336221950,0.002,90656.0,90643.0,0.01103229]
[1745336222163,0.00829846,90666.0,90653.0,0.001]
[1745336222355,0.0078484,90663.0,90653.0,0.001]
[1745336222594,0.0138484,90663.0,90653.0,0.002]
[1745336222766,0.0008484,90663.0,90649.0,0.23166107]
[1745336222919,0.0008484,90663.0,90653.0,0.39404379]
[1745336223135,0.004,90656.0,90654.0,0.00220604]
[1745336223339,0.004,90656.0,90654.0,0.0022059]
[1745336223545,0.004,90656.0,90650.0,0.01103143]
[1745336223949,0.004,90656.0,90651.0,0.01103131]
[1745336224151,0.004,90656.0,90649.0,0.01182556]
[1745336224421,0.004,90656.0,89499.0,0.0138682]
[1745336224422,0.004,90656.0,90644.0,0.01103216]
[1745336224694,0.007,90656.0,90644.0,0.0121404]
[1745336224916,0.04984289,90653.0,90634.0,0.00013846]
[1745336225128,0.01103143,90650.0,90634.0,0.00013846]
[1745336225350,0.11275594,90649.0,90634.0,0.00013846]
[1745336225545,0.2206653,90635.0,90634.0,0.00013846]
[1745336225716,0.22065979,90638.0,90634.0,0.00013846]
[1745336225920,0.2206641,90636.0,90634.0,0.00013846]
[1745336226132,0.22065416,90640.0,90634.0,0.00013846]
[1745336226296,0.44718117,90648.0,90634.0,0.00013846]
[1745336226297,0.22654752,90648.0,90634.0,0.00013846]
[1745336226502,0.34030346,90648.0,90634.0,0.00013846]
[1745336226699,0.004,90635.0,90634.0,0.003345]
[1745336227085,0.004,90635.0,90634.0,0.00113846]
[1745336227297,0.004,90635.0,90634.0,0.00334478]
[1745336227471,0.22354752,90648.0,90634.0,0.00113846]
[1745336228020,0.22354752,90648.0,90638.0,0.39404379]
[1745336228225,0.003,90640.0,90638.0,0.39404379]
[1745336228468,0.003,90640.0,90634.0,0.00113846]
[1745336228679,0.004,90636.0,90634.0,0.00113846]
[1745336228886,0.004,90636.0,90634.0,0.00213846]
[1745336229090,0.22354752,90648.0,90634.0,0.00013846]
[1745336229461,0.003,90640.0,90638.0,0.59079441]
[1745336229755,0.003,90640.0,90634.0,0.00013846]
[1745336229756,0.05,90639.0,90634.0,0.00013846]
[1745336230329,0.22062613,90652.0,90634.0,0.00013846]
[1745336230330,0.002,90648.0,90634.0,0.00013846]
[1745336230499,0.00184089,90648.0,90634.0,0.00013846]
[1745336231381,0.00184089,90648.0,90634.0,0.00113846]
[1745336231556,0.00184089,90648.0,90634.0,0.00013846]
[1745336231763,0.22064365,90644.0,90634.0,0.00013846]
[1745336232085,0.003,90639.0,90634.0,0.00013846]
[1745336232516,0.22064506,90644.0,90634.0,0.00013846]
[1745336232632,0.22064864,90642.0,90634.0,0.00013846]
[1745336232833,0.08895659,90646.0,90634.0,0.00113846]
[1745336233085,0.22065881,90638.0,90634.0,0.00113846]
[1745336233298,0.22066075,90637.0,90634.0,0.00013846]
[1745336233501,0.22066012,90638.0,90634.0,0.00013846]
[1745336233649,0.22066012,90638.0,90634.0,0.00213846]
[1745336233849,0.22066372,90636.0,90634.0,0.00213846]
[1745336234054,0.22066012,90638.0,90634.0,0.00213846]
[1745336234310,0.22565763,90639.0,90634.0,0.00213846]
[1745336234733,0.005,90639.0,90634.0,0.00213846]
[1745336234912,0.11375594,90646.0,90634.0,0.00013846]
[1745336235110,0.01454085,90664.0,90634.0,0.00013846]
[1745336235111,0.22060361,90661.0,90635.0,0.01103326]
[1745336235328,0.004,90637.0,90634.0,0.00213846]
[1745336235536,0.004,90637.0,90634.0,0.00113846]
[1745336235661,0.22354752,90668.0,90634.0,0.00113846]
[1745336235662,0.44413389,90668.0,90642.0,0.220647]
[1745336235863,0.11375594,90662.0,90652.0,0.59079441]
[1745336236124,0.44413389,90668.0,90653.0,0.01323728]
[1745336236125,0.22354752,90668.0,90653.0,0.01323728]
[1745336236322,0.00079171,90670.0,90654.0,0.11375594]
[1745336236930,0.0058484,90663.0,90654.0,0.12478689]
[1745336237332,0.0058484,90663.0,90654.0,0.11375594]
[1745336237779,0.0058484,90663.0,90655.0,0.01103083]
[1745336237982,0.0058484,90663.0,90654.0,0.11375594]
[1745336238191,0.0008484,90663.0,90655.0,0.01103083]
[1745336238398,0.0068484,90663.0,90656.0,0.0110307]
[1745336238549,0.0028484,90663.0,90656.0,0.0110307]
[1745336238939,0.0028484,90663.0,90662.0,0.22059958]
[1745336239117,0.0028484,90663.0,90662.0,0.0022056]
[1745336239410,0.0008484,90663.0,90662.0,0.0022056]
[1745336240577,0.0008484,90663.0,90660.0,0.57163253]
[1745336241253,0.0018484,90663.0,90660.0,0.57163253]
[1745336241462,0.12443901,90683.0,90663.0,0.01102985]
[1745336241654,0.12457719,90683.0,90673.0,0.59079441]
[1745336241830,0.00013818,90683.0,90673.0,0.59079441]
[1745336242243,0.00013818,90683.0,90673.0,1.18158882]
[1745336242441,0.00013818,90683.0,90682.0,0.22055093]
[1745336242620,0.00013818,90683.0,90677.0,0.23159029]
[1745336243021,0.004,90683.0,90679.0,0.01102791]
[1745336243274,0.009,90683.0,90678.0,0.01102803]
[1745336243477,0.009,90683.0,90681.0,0.22055221]